fUSD/lending_fUSD_20250526
["ID","MTS","AMOUNT","RATE_DAILY","PERIOD"]
[362377572,1748231027334,-431.53831486,0.00019779,2]
[362377573,1748231027356,-420.0,0.00019779,2]
[362377574,1748231027376,-411.41599442,0.00019779,2]
[362377575,1748231027396,-427.12121659,0.00019779,2]
[362377576,1748231027417,-461.50613897,0.00019779,2]
[362377577,1748231027438,-427.18176044,0.00019779,2]
[362377578,1748231027458,-420.0,0.00019779,2]
[362377579,1748231027479,-423.73399965,0.00019779,2]
[362377580,1748231027503,-420.0,0.00019779,2]
[362377581,1748231027524,-435.09575606,0.00019779,2]
[362377582,1748231027548,-420.0,0.00019779,2]
[362377583,1748231027570,-170.15892469,0.00019779,2]
[362377584,1748231027594,-429.25187002,0.00019779,2]
[362377585,1748231027616,-198.39384214,0.00019779,2]
[362377586,1748231027635,-429.16954483,0.00019779,2]
[362377587,1748231027656,-420.0,0.00019779,2]
[362377588,1748231027676,-434.33944781,0.00019779,2]
[362377589,1748231027696,-420.0,0.00019779,2]
[362377590,1748231027717,-267.70697795,0.00019779,2]
[362377591,1748231027738,-420.0,0.00019779,2]
[362377592,1748231027758,-426.34599261,0.00019779,2]
[362377593,1748231027778,-434.06219449,0.00019779,2]
[362377594,1748231027798,-424.27994911,0.00019779,2]
[362377595,1748231027818,-427.93925366,0.00019779,2]
[362377596,1748231027842,-422.96555234,0.00019779,2]
[362377597,1748231027864,-420.0,0.00019779,2]
[362377598,1748231027884,-431.39332836,0.00019779,2]
[362377599,1748231027907,-420.0,0.00019779,2]
[362377600,1748231027931,-423.93510757,0.00019779,2]
[362377601,1748231027951,-424.85206958,0.00019779,2]
[362377602,1748231027973,-431.94348286,0.00019779,2]
[362377603,1748231027993,-424.22506035,0.00019779,2]
[362377604,1748231028014,-420.0,0.00019779,2]
[362377605,1748231028037,-265.84196913,0.00019779,2]
[362377606,1748231028057,-420.0,0.00019779,2]
[362377607,1748231028079,-424.84576241,0.00019779,2]
[362377608,1748231028100,-420.0,0.00019779,2]
[362377609,1748231028121,-420.0,0.00019779,2]
[362377610,1748231028143,-460.35408707,0.00019779,2]
[362377611,1748231028408,-425.63968456,0.00019779,2]
[362377612,1748231028430,-390.28911305,0.00019779,2]
[362377613,1748231028451,-420.0,0.00019779,2]
[362377614,1748231028473,-420.0,0.00019779,2]
[362377615,1748231028495,-420.0,0.00019779,2]
[362377616,1748231028517,-420.0,0.00019779,2]
[362377617,1748231028538,-432.95114564,0.00019779,2]
[362377618,1748231028560,-420.0,0.00019779,2]
[362377619,1748231028580,-420.0,0.00019779,2]
[362377620,1748231028601,-428.1600107,0.00019779,2]
[362377621,1748231028622,-420.0,0.00019779,2]
[362377622,1748231028644,-420.0,0.00019779,2]
[362377623,1748231028666,-446.28407643,0.00019779,2]
[362377624,1748231028687,-430.42659416,0.00019779,2]
[362377625,1748231028708,-282.55274384,0.00019779,2]
[362377626,1748231028731,-424.41064526,0.00019779,2]
[362377627,1748231028752,-423.15178045,0.00019779,2]
[362377628,1748231028774,-420.0,0.00019779,2]
[362377629,1748231028796,-420.0,0.00019779,2]
[362377630,1748231028818,-411.8381082,0.00019779,2]
[362377631,1748231028842,-420.0,0.00019779,2]
[362377632,1748231028864,-425.72462861,0.00019779,2]
[362377633,1748231028886,-420.0,0.00019779,2]
[362377634,1748231028909,-420.0,0.00019779,2]
[362377635,1748231028932,-420.0,0.00019779,2]
[362377636,1748231028954,-420.0,0.00019779,2]
[362377637,1748231028974,-426.02604488,0.00019779,2]
[362377638,1748231028998,-423.98600044,0.00019779,2]
[362377639,1748231029019,-420.0,0.00019779,2]
[362377640,1748231029040,-420.0,0.00019779,2]
[362377641,1748231029062,-423.08356282,0.00019779,2]
[362377642,1748231029083,-255.95417277,0.00019779,2]
[362377643,1748231029104,-419.2159506,0.00019779,2]
[362377644,1748231029126,-196.03576733,0.00019779,2]
[362377645,1748231029148,-420.0,0.00019779,2]
[362377646,1748231029172,-422.85063423,0.00019779,2]
[362377647,1748231029196,-435.30939241,0.00019779,2]
[362377648,1748231029219,-423.22871403,0.00019779,2]
[362377649,1748231029243,-420.0,0.00019779,2]
[362377650,1748231029266,-466.10392764,0.00019779,2]
[362377651,1748231029288,-456.62684503,0.00019779,2]
[362377652,1748231029308,-432.69861923,0.00019779,2]
[362377653,1748231029330,-437.60312931,0.00019779,2]
[362377654,1748231029351,-472.39844073,0.00019779,2]
[362377655,1748231029372,-423.20838486,0.00019779,2]
[362377656,1748231029394,-434.19876262,0.00019779,2]
[362377657,1748231029415,-457.8777064,0.00019779,2]
[362377658,1748231029436,-424.38865069,0.00019779,2]
[362377659,1748231029457,-420.0,0.00019779,2]
[362377660,1748231029478,-420.0,0.00019779,2]
[362377661,1748231029499,-420.0,0.00019779,2]
[362377662,1748231029520,-556.96490905,0.00019779,2]
[362377663,1748231029541,-445.49011891,0.00019779,2]
[362377664,1748231029562,-453.63764405,0.00019779,2]
[362377665,1748231029585,-433.0053123,0.00019779,2]
[362377666,1748231029609,-420.0,0.00019779,2]
[362377667,1748231029631,-424.34744519,0.00019779,2]
[362377668,1748231029651,-421.43513968,0.00019779,2]
[362377669,1748231029674,-450.76092007,0.00019779,2]
[362377670,1748231029696,-424.04430569,0.00019779,2]
[362377671,1748231029721,-420.0,0.00019779,2]
[362377672,1748231029744,-439.12915861,0.00019779,2]
[362377673,1748231029769,-421.19630492,0.00019779,2]
[362377674,1748231029791,-420.0,0.00019779,2]
[362377675,1748231029813,-420.0,0.00019779,2]
[362377676,1748231029835,-426.67303588,0.00019779,2]
[362377677,1748231029868,-426.6251514,0.00019779,2]
[362377678,1748231029892,-163.88598797,0.00019779,2]
[362377679,1748231029914,-420.0,0.00019779,2]
[362377680,1748231029939,-424.33597941,0.00019779,2]
[362377681,1748231029960,-431.96534537,0.00019779,2]
[362377682,1748231029982,-423.02331871,0.00019779,2]
[362377683,1748231030003,-420.0,0.00019779,2]
[362377684,1748231030025,-426.22908446,0.00019779,2]
[362377685,1748231030047,-433.27629845,0.00019779,2]
[362377686,1748231030068,-424.0386633,0.00019779,2]
[362377687,1748231030093,-424.25146388,0.00019779,2]
[362377688,1748231030114,-420.0,0.00019779,2]
[362377689,1748231030142,-442.40916516,0.00019779,2]
[362377690,1748231030163,-420.0,0.00019779,2]
[362377691,1748231030184,-432.09960343,0.00019779,2]
[362377692,1748231030205,-491.25788144,0.00019779,2]
[362377693,1748231030227,-420.0,0.00019779,2]
[362377694,1748231030248,-420.0,0.00019779,2]
[362377695,1748231030269,-420.0,0.00019779,2]
[362377696,1748231030290,-422.98562109,0.00019779,2]
[362377697,1748231030311,-420.0,0.00019779,2]
[362377698,1748231030331,-435.72818637,0.00019779,2]
[362377699,1748231030352,-423.28948411,0.00019779,2]
[362377700,1748231030372,-2024.1048562,0.00019779,2]
[362377701,1748231030393,-423.39813719,0.00019779,2]
[362377702,1748231030414,-438.63405834,0.00019779,2]
[362377703,1748231030434,-427.54798439,0.00019779,2]
[362377704,1748231030456,-420.0,0.00019779,2]
[362377705,1748231030478,-426.78868213,0.00019779,2]
[362377706,1748231030499,-432.20458155,0.00019779,2]
[362377707,1748231030521,-429.90935013,0.00019779,2]
[362377708,1748231030552,-420.0,0.00019779,2]
[362377709,1748231030578,-420.0,0.00019779,2]
[362377710,1748231030601,-431.67813218,0.00019779,2]
[362377711,1748231030625,-470.65104981,0.00019779,2]
[362377712,1748231030647,-420.0,0.00019779,2]
[362377713,1748231030670,-431.63209729,0.00019779,2]
[362377714,1748231030693,-420.0,0.00019779,2]
[362377715,1748231030715,-420.0,0.00019779,2]
[362377716,1748231030738,-478.25855051,0.00019779,2]
[362377717,1748231030761,-423.86355618,0.00019779,2]
[362377718,1748231030786,-433.30514751,0.00019779,2]
[362377719,1748231030818,-420.0,0.00019779,2]
[362377720,1748231030843,-212.61177819,0.00019779,2]
[362377721,1748231030867,-422.94812214,0.00019779,2]
[362377722,1748231030891,-420.0,0.00019779,2]
[362377723,1748231030916,-420.0,0.00019779,2]
[362377724,1748231030940,-426.34470456,0.00019779,2]
[362377725,1748231030962,-427.93894437,0.00019779,2]
[362377726,1748231030984,-420.0,0.00019779,2]
[362377727,1748231031007,-464.26687178,0.00019779,2]
[362377728,1748231031029,-420.0,0.00019779,2]
[362377729,1748231031050,-420.0,0.00019779,2]
[362377730,1748231031072,-420.0,0.00019779,2]
[362377731,1748231031095,-431.25081116,0.00019779,2]
[362377732,1748231031119,-420.0,0.00019779,2]
[362377733,1748231031141,-427.0225382,0.00019779,2]
[362377734,1748231031165,-420.0,0.00019779,2]
[362377735,1748231031187,-420.0,0.00019779,2]
[362377736,1748231031209,-420.0,0.00019779,2]
[362377737,1748231031231,-427.36176827,0.00019779,2]
[362377738,1748231031252,-436.41564489,0.00019779,2]
[362377739,1748231031273,-420.0,0.00019779,2]
[362377740,1748231031295,-420.0,0.00019779,2]
[362377741,1748231031316,-420.0,0.00019779,2]
[362377742,1748231031337,-420.0,0.00019779,2]
[362377743,1748231031358,-420.0,0.00019779,2]
[362377744,1748231031379,-429.90946309,0.00019779,2]
[362377745,1748231031401,-431.52655909,0.00019779,2]
[362377746,1748231031424,-427.89246817,0.00019779,2]
[362377747,1748231031445,-425.50037022,0.00019779,2]
[362377748,1748231031466,-427.2700045,0.00019779,2]
[362377749,1748231031487,-420.0,0.00019779,2]
[362377750,1748231031508,-420.0,0.00019779,2]
[362377751,1748231031529,-428.21380173,0.00019779,2]
[362377752,1748231031550,-455.1,0.00019779,2]
[362377753,1748231031571,-429.11066199,0.00019779,2]
[362377754,1748231031592,-420.0,0.00019779,2]
[362377755,1748231031614,-432.72195966,0.00019779,2]
[362377756,1748231031637,-427.05882631,0.00019779,2]
[362377757,1748231031659,-420.0,0.00019779,2]
[362377758,1748231031681,-430.36397104,0.00019779,2]
[362377759,1748231031703,-420.0,0.00019779,2]
[362377760,1748231031725,-426.39019524,0.00019779,2]
[362377761,1748231031748,-465.17279008,0.00019779,2]
[362377762,1748231031771,-427.39160347,0.00019779,2]
[362377763,1748231031797,-422.5961638,0.00019779,2]
[362377764,1748231031819,-420.0,0.00019779,2]
[362377765,1748231031846,-427.07230107,0.00019779,2]
[362377766,1748231031867,-428.37391196,0.00019779,2]
[362377767,1748231031892,-427.7537594,0.00019779,2]
[362377768,1748231031915,-420.23550549,0.00019779,2]
[362377769,1748231031938,-429.07097963,0.00019779,2]
[362377770,1748231031959,-430.84086238,0.00019779,2]
[362377771,1748231031980,-430.96670535,0.00019779,2]
[362377772,1748231032002,-458.96625064,0.00019779,2]
[362377773,1748231032025,-434.22629868,0.00019779,2]
[362377774,1748231032045,-420.0,0.00019779,2]
[362377775,1748231032066,-455.81756558,0.00019779,2]
[362377776,1748231032088,-420.0,0.00019779,2]
[362377777,1748231032109,-426.98639895,0.00019779,2]
[362377778,1748231032131,-412.81718761,0.00019779,2]
[362377779,1748231032152,-420.0,0.00019779,2]
[362377780,1748231032174,-420.0,0.00019779,2]
[362377781,1748231032196,-420.0,0.00019779,2]
[362377782,1748231032218,-484.17588542,0.00019779,2]
[362377783,1748231032239,-424.82750659,0.00019779,2]
[362377784,1748231032261,-433.21345111,0.00019779,2]
[362377785,1748231032284,-429.58403669,0.00019779,2]
[362377786,1748231032305,-431.36862038,0.00019779,2]
[362377787,1748231032326,-420.0,0.00019779,2]
[362377788,1748231032346,-431.29050634,0.00019779,2]
[362377789,1748231032367,-420.0,0.00019779,2]
[362377790,1748231032388,-438.50312562,0.00019779,2]
[362377791,1748231032409,-447.89648578,0.00019779,2]
[362377792,1748231032638,-420.0,0.00019779,2]
[362377793,1748231032661,-428.76090832,0.00019779,2]
[362377794,1748231032683,-423.56836109,0.00019779,2]
[362377795,1748231032705,-427.59024513,0.00019779,2]
[362377796,1748231032726,-426.12970071,0.00019779,2]
[362377797,1748231032748,-457.42333893,0.00019779,2]
[362377798,1748231032770,-420.0,0.00019779,2]
[362377799,1748231032792,-420.0,0.00019779,2]
[362377800,1748231032814,-420.0,0.00019779,2]
[362377801,1748231032836,-423.16836317,0.00019779,2]
[362377802,1748231032862,-420.0,0.00019779,2]
[362377803,1748231032883,-426.1536169,0.00019779,2]
[362377804,1748231032904,-429.58712925,0.00019779,2]
[362377805,1748231032927,-423.15748364,0.00019779,2]
[362377806,1748231032949,-162.23381467,0.00019779,2]
[362377807,1748231032971,-424.4297078,0.00019779,2]
[362377808,1748231032992,-420.0,0.00019779,2]
[362377809,1748231033015,-430.54180479,0.00019779,2]
[362377810,1748231033037,-420.0,0.00019779,2]
[362377811,1748231033059,-431.3720254,0.00019779,2]
[362377812,1748231033081,-461.08502366,0.00019779,2]
[362377813,1748231033103,-424.7780636,0.00019779,2]
[362377814,1748231033126,-420.0,0.00019779,2]
[362377815,1748231033148,-309.65814575,0.00019779,2]
[362377816,1748231033171,-422.74297329,0.00019779,2]
[362377817,1748231033192,-426.37566353,0.00019779,2]
[362377818,1748231033215,-420.0,0.00019779,2]
[362377819,1748231033237,-421.38163253,0.00019779,2]
[362377820,1748231033258,-420.0,0.00019779,2]
[362377821,1748231033280,-420.08734046,0.00019779,2]
[362377822,1748231033303,-427.21809365,0.00019779,2]
[362377823,1748231033324,-440.21875692,0.00019779,2]
[362377824,1748231033346,-447.64206831,0.00019779,2]
[362377825,1748231033374,-424.16670124,0.00019779,2]
[362377826,1748231033397,-420.0,0.00019779,2]
[362377827,1748231033420,-500.0,0.00019779,2]
[362377828,1748231033442,-425.80064341,0.00019779,2]
[362377829,1748231033464,-479.7448159,0.00019779,2]
[362377830,1748231033490,-420.0,0.00019779,2]
[362377831,1748231033512,-420.0,0.00019779,2]
[362377832,1748231033534,-424.12700235,0.00019779,2]
[362377833,1748231033555,-445.91855437,0.00019779,2]
[362377834,1748231033578,-431.82391017,0.00019779,2]
[362377835,1748231033600,-500.0,0.00019779,2]
[362377836,1748231033624,-420.0,0.00019779,2]
[362377837,1748231033646,-428.13843319,0.00019779,2]
[362377838,1748231033670,-420.0,0.00019779,2]
[362377839,1748231033692,-420.0,0.00019779,2]
[362377840,1748231033714,-420.0,0.00019779,2]
[362377841,1748231033738,-423.32045745,0.00019779,2]
[362377842,1748231033762,-420.0,0.00019779,2]
[362377843,1748231033786,-420.0,0.00019779,2]
[362377844,1748231033810,-420.0,0.00019779,2]
[362377845,1748231033832,-420.0,0.00019779,2]
[362377846,1748231033857,-420.0,0.00019779,2]
[362377847,1748231033879,-420.0,0.00019779,2]
[362377848,1748231033901,-420.0,0.00019779,2]
[362377849,1748231033925,-420.0,0.00019779,2]
[362377850,1748231033949,-420.0,0.00019779,2]
[362377851,1748231033973,-420.0,0.00019779,2]
[362377852,1748231033995,-420.0,0.00019779,2]
[362377853,1748231034018,-457.21345622,0.00019779,2]
[362377854,1748231034039,-420.0,0.00019779,2]
[362377855,1748231034061,-420.0,0.00019779,2]
[362377856,1748231034082,-427.10864292,0.00019779,2]
[362377857,1748231034105,-420.0,0.00019779,2]
[362377858,1748231034127,-423.66749033,0.00019779,2]
[362377859,1748231034149,-550.45665382,0.00019779,2]
[362377860,1748231034171,-426.56561514,0.00019779,2]
[362377861,1748231034193,-420.0,0.00019779,2]
[362377862,1748231034216,-424.82759694,0.00019779,2]
[362377863,1748231034238,-1009.58551396,0.00019779,2]
[362377864,1748231034260,-371.86227874,0.00019779,2]
[362377865,1748231034281,-425.8728424,0.00019779,2]
[362377866,1748231034303,-428.24512171,0.00019779,2]
[362377867,1748231034325,-362.22350977,0.00019779,2]
[362377868,1748231034346,-464.3593573,0.00019779,2]
[362377869,1748231034368,-420.0,0.00019779,2]
[362377870,1748231034389,-427.88929447,0.00019779,2]
[362377871,1748231034411,-420.0,0.00019779,2]
[362377872,1748231034435,-483.77472041,0.00019779,2]
[362377873,1748231034457,-422.8727314,0.00019779,2]
[362377874,1748231034479,-422.92591547,0.00019779,2]
[362377875,1748231034502,-420.0,0.00019779,2]
[362377876,1748231034526,-420.0,0.00019779,2]
[362377877,1748231034550,-423.9376506,0.00019779,2]
[362377878,1748231034571,-427.03750691,0.00019779,2]
[362377879,1748231034593,-540.09951184,0.00019779,2]
[362377880,1748231034615,-420.0,0.00019779,2]
[362377881,1748231034637,-424.55703148,0.00019779,2]
[362377882,1748231034661,-22222.0,0.00019786,2]
[362377883,1748231034685,-16562.67696374,0.00019789,2]
[362377884,1748231034707,-183.86715225,0.00019789,2]
[362377885,1748231034728,-500.0,0.00019798,2]
[362377886,1748231034749,-420.0,0.00019799,2]
[362377887,1748231034770,-420.0,0.00019799,2]
[362377888,1748231034796,-420.0,0.00019799,2]
[362377889,1748231034818,-337.62809598,0.00019799,2]
[362377890,1748231034841,-420.0,0.00019799,2]
[362377891,1748231034865,-420.0,0.00019799,2]
[362377892,1748231034888,-420.0,0.00019799,2]
[362377893,1748231034911,-420.0,0.00019799,2]
[362377894,1748231034936,-460.55426103,0.00019799,2]
[362377895,1748231034959,-420.0,0.00019799,2]
[362377896,1748231034981,-441.99692047,0.00019799,2]
[362377897,1748231035004,-420.0,0.00019799,2]
[362377898,1748231035027,-420.0,0.00019799,2]
[362377899,1748231035051,-420.0,0.00019799,2]
[362377900,1748231035072,-456.47823166,0.00019799,2]
[362377901,1748231035096,-420.0,0.00019799,2]
[362377902,1748231035118,-420.0,0.00019799,2]
[362377903,1748231035139,-420.0,0.00019799,2]
[362377904,1748231035161,-457.4213297,0.00019799,2]
[362377905,1748231035182,-434.50187072,0.00019799,2]
[362377906,1748231035204,-426.25236078,0.00019799,2]
[362377907,1748231035226,-420.0,0.00019799,2]
[362377908,1748231035248,-420.0,0.00019799,2]
[362377909,1748231035271,-420.0,0.00019799,2]
[362377910,1748231035293,-420.0,0.00019799,2]
[362377911,1748231035314,-420.0,0.00019799,2]
[362377912,1748231035335,-420.0,0.00019799,2]
[362377913,1748231035356,-420.0,0.00019799,2]
[362377914,1748231035378,-420.0,0.00019799,2]
[362377915,1748231035402,-420.0,0.00019799,2]
[362377916,1748231035425,-420.0,0.00019799,2]
[362377917,1748231035449,-420.0,0.00019799,2]
[362377918,1748231035472,-420.0,0.00019799,2]
[362377919,1748231035495,-420.0,0.00019799,2]
[362377920,1748231035518,-420.0,0.00019799,2]
[362377921,1748231035541,-420.0,0.00019799,2]
[362377922,1748231035562,-420.0,0.00019799,2]
[362377923,1748231035586,-420.0,0.00019799,2]
[362377924,1748231035609,-434.50038622,0.00019799,2]
[362377925,1748231035631,-420.0,0.00019799,2]
[362377926,1748231035652,-524.45347996,0.00019799,2]
[362377927,1748231035673,-420.0,0.00019799,2]
[362377928,1748231035694,-420.0,0.00019799,2]
[362377929,1748231035715,-420.0,0.00019799,2]
[362377930,1748231035737,-420.0,0.00019799,2]
[362377931,1748231035760,-420.0,0.00019799,2]
[362377932,1748231035782,-420.0,0.00019799,2]
[362377933,1748231035804,-420.0,0.00019799,2]
[362377934,1748231035827,-420.0,0.00019799,2]
[362377935,1748231035851,-420.0,0.00019799,2]
[362377936,1748231035875,-517.07657442,0.00019799,2]
[362377937,1748231035898,-420.0,0.00019799,2]
[362377938,1748231035925,-420.0,0.00019799,2]
[362377939,1748231035949,-464.45881157,0.00019799,2]
[362377940,1748231035972,-481.86219895,0.00019799,2]
[362377941,1748231035995,-468.33746096,0.00019799,2]
[362377942,1748231036016,-420.0,0.00019799,2]
[362377943,1748231036037,-463.46534957,0.00019799,2]
[362377944,1748231036058,-420.0,0.00019799,2]
[362377945,1748231036079,-449.59392078,0.00019799,2]
[362377946,1748231036101,-476.39321925,0.00019799,2]
[362377947,1748231036123,-502.42715267,0.00019799,2]
[362377948,1748231036145,-467.51729894,0.00019799,2]
[362377949,1748231036166,-442.40884692,0.00019799,2]
[362377950,1748231036188,-282.22533264,0.00019799,2]
[362377951,1748231036210,-500.0,0.00019799,2]
[362377952,1748231036232,-539.31543202,0.00019799,2]
[362377953,1748231036253,-500.0,0.00019799,2]
[362377954,1748231036275,-420.0,0.00019799,2]
[362377955,1748231036297,-420.0,0.00019799,2]
[362377956,1748231036318,-408.93,0.00019799,2]
[362377957,1748231036338,-420.0,0.00019799,2]
[362377958,1748231036359,-460.00710162,0.00019799,2]
[362377959,1748231036381,-420.0,0.00019799,2]
[362377960,1748231036402,-420.0,0.00019799,2]
[362377961,1748231036424,-519.39488463,0.00019799,2]
[362377962,1748231036445,-300.0,0.000198,7]
[362377963,1748231036466,-726.8205,0.000198,2]
[362377964,1748231036488,-1128.4513,0.000198,2]
[362377965,1748231036509,-120766.9966,0.000198,2]
[362377966,1748231036530,-169.85209778,0.000198,2]
[362377967,1748231036551,-523.63518709,0.000198,2]
[362377968,1748231036573,-409.63482295,0.00019805,2]
[362377969,1748231036594,-16562.67696374,0.00019811,2]
[362377970,1748231036615,-183.86715225,0.00019811,2]
[362377971,1748231036635,-523.63518709,0.00019817,2]
[362377972,1748231036795,-523.63518709,0.00019833,2]
[362377973,1748231036852,-16562.67696374,0.00019833,2]
[362377974,1748231036878,-183.86715225,0.00019833,2]
[362377975,1748231036905,-150.0,0.00019836,2]
[362377976,1748231036926,-150.0,0.00019836,2]
[362377977,1748231036950,-409.63482295,0.00019837,2]
[362377978,1748231036973,-200.0,0.0001984,2]
[362377979,1748231036995,-169.85209777,0.0001985,2]
[362377980,1748231037018,-523.63518709,0.0001985,2]
[362377981,1748231037041,-421.98375716,0.00019855,2]
[362377982,1748231037062,-420.0,0.00019855,2]
[362377983,1748231037084,-420.0,0.00019855,2]
[362377984,1748231037106,-420.0,0.00019855,2]
[362377985,1748231037128,-420.68518103,0.00019855,2]
[362377986,1748231037153,-420.0,0.00019855,2]
[362377987,1748231037177,-420.0,0.00019855,2]
[362377988,1748231037199,-532.82036774,0.00019855,2]
[362377989,1748231037220,-420.0,0.00019855,2]
[362377990,1748231037241,-420.0,0.00019855,2]
[362377991,1748231037263,-420.0,0.00019855,2]
[362377992,1748231037284,-420.0,0.00019855,2]
[362377993,1748231037305,-420.0,0.00019855,2]
[362377994,1748231037325,-173.38502429,0.00019855,2]
[362377995,1748231037347,-420.0,0.00019855,2]
[362377996,1748231037367,-428.06021757,0.00019855,2]
[362377997,1748231037387,-421.00373331,0.00019855,2]
[362377998,1748231037408,-420.0,0.00019855,2]
[362377999,1748231037429,-421.15605348,0.00019855,2]
[362378000,1748231037452,-421.22818599,0.00019855,2]
[362378001,1748231037477,-420.0,0.00019855,2]
[362378002,1748231037499,-420.0,0.00019855,2]
[362378003,1748231037523,-421.98367325,0.00019855,2]
[362378004,1748231037550,-422.22390468,0.00019855,2]
[362378005,1748231037573,-420.0,0.00019855,2]
[362378006,1748231037598,-494.92888426,0.00019855,2]
[362378007,1748231037621,-423.13170033,0.00019855,2]
[362378008,1748231037641,-413.39404574,0.00019855,2]
[362378009,1748231037662,-422.02152228,0.00019855,2]
[362378010,1748231037684,-420.73570575,0.00019855,2]
[362378011,1748231037707,-423.25454616,0.00019855,2]
[362378012,1748231037728,-420.0,0.00019855,2]
[362378013,1748231037750,-420.0,0.00019855,2]
[362378014,1748231037772,-422.76991131,0.00019855,2]
[362378015,1748231037795,-422.22347355,0.00019855,2]
[362378016,1748231037818,-420.0,0.00019855,2]
[362378017,1748231037844,-420.0,0.00019855,2]
[362378018,1748231037866,-420.0,0.00019855,2]
[362378019,1748231037890,-511.18172904,0.00019855,2]
[362378020,1748231037915,-511.61931578,0.00019855,2]
[362378021,1748231037941,-532.17353383,0.00019855,2]
[362378022,1748231037966,-420.0,0.00019855,2]
[362378023,1748231037990,-420.0,0.00019855,2]
[362378024,1748231038017,-420.0,0.00019855,2]
[362378025,1748231038040,-420.0,0.00019855,2]
[362378026,1748231038063,-420.0,0.00019855,2]
[362378027,1748231038085,-252.64,0.00019855,2]
[362378028,1748231038110,-420.0,0.00019855,2]
[362378029,1748231038135,-420.0,0.00019855,2]
[362378030,1748231038160,-420.0,0.00019855,2]
[362378031,1748231038185,-420.0,0.00019855,2]
[362378032,1748231038209,-420.0,0.00019855,2]
[362378033,1748231038232,-420.0,0.00019855,2]
[362378034,1748231038254,-420.0,0.00019855,2]
[362378035,1748231038279,-420.0,0.00019855,2]
[362378036,1748231038303,-420.0,0.00019855,2]
[362378037,1748231038328,-420.0,0.00019855,2]
[362378038,1748231038350,-420.0,0.00019855,2]
[362378039,1748231038372,-420.0,0.00019855,2]
[362378040,1748231038395,-235.24,0.00019855,2]
[362378041,1748231038418,-420.0,0.00019855,2]
[362378042,1748231038441,-420.0,0.00019855,2]
[362378043,1748231038463,-16562.67696374,0.00019856,2]
[362378044,1748231038485,-165.10294297,0.00019856,2]
[362378045,1748231038508,-249.34020466,0.00019856,2]
[362378046,1748231038534,-420.0,0.00019856,2]
[362378047,1748231038556,-163.61241614,0.00019856,2]
[362378048,1748231038582,-287.20770338,0.00019856,2]
[362378049,1748231038605,-420.0,0.00019856,2]
[362378050,1748231038629,-420.0,0.00019856,2]
[362378051,1748231038654,-420.0,0.00019856,2]
[362378052,1748231038677,-420.0,0.00019856,2]
[362378053,1748231038701,-420.0,0.00019856,2]
[362378054,1748231038724,-239.85505777,0.00019856,2]
[362378055,1748231038752,-420.0,0.00019856,2]
[362378056,1748231038775,-420.0,0.00019856,2]
[362378057,1748231038800,-444.53,0.00019856,2]
[362378058,1748231038823,-420.0,0.00019856,2]
[362378059,1748231038849,-420.0,0.00019856,2]
[362378060,1748231038872,-440.34767498,0.00019856,2]
[362378061,1748231038895,-420.0,0.00019856,2]
[362378062,1748231038918,-400.0,0.00019856,2]
[362378063,1748231038940,-411.72919124,0.00019856,2]
[362378064,1748231038961,-420.0,0.00019856,2]
[362378065,1748231038982,-260.43541268,0.00019856,2]
[362378066,1748231039003,-275.65521141,0.00019856,2]
[362378067,1748231039025,-184.29186443,0.00019856,2]
[362378068,1748231039048,-420.0,0.00019856,2]
[362378069,1748231039070,-321.1046068,0.00019856,2]
[362378070,1748231039092,-420.0,0.00019856,2]
[362378071,1748231039115,-465.9341198,0.00019856,2]